[Event "Early-Titled-Tuesday-Blitz-March-26-2024"]
[Site "Chess.com"]
[Date "2024.03.26"]
[Round "6"]
[White "lagunanivaria"]
[Black "arenal72"]
[Result "0-1"]
[WhiteElo "2456"]
[BlackElo "2617"]
[TimeControl "180+1"]
[EndTime "9:03:55 PDT"]
[Termination "arenal72 won by resignation"]

1. e3 {[%clk 0:03:00.9]} 1... Nf6 {[%clk 0:02:55.8]} 2. d4 {[%clk 0:03:00.5]}
2... d5 {[%clk 0:02:54]} 3. c4 {[%clk 0:03:00.6]} 3... e6 {[%clk 0:02:53.7]} 4.
Nc3 {[%clk 0:03:01]} 4... a6 {[%clk 0:02:53.1]} 5. Nf3 {[%clk 0:03:01.2]} 5...
dxc4 {[%clk 0:02:52.5]} 6. Bxc4 {[%clk 0:03:01.9]} 6... b5 {[%clk 0:02:52.6]} 7.
Be2 {[%clk 0:03:01.4]} 7... Bb7 {[%clk 0:02:52.5]} 8. O-O {[%clk 0:03:01.1]}
8... Nbd7 {[%clk 0:02:52.8]} 9. a3 {[%clk 0:02:53]} 9... c5 {[%clk 0:02:52.6]}
10. b3 {[%clk 0:02:50.2]} 10... Be7 {[%clk 0:02:51.7]} 11. Bb2 {[%clk
0:02:50.3]} 11... O-O {[%clk 0:02:51.9]} 12. Rc1 {[%clk 0:02:50.6]} 12... Qb6
{[%clk 0:02:52]} 13. dxc5 {[%clk 0:02:49.5]} 13... Nxc5 {[%clk 0:02:51.4]} 14.
b4 {[%clk 0:02:49.7]} 14... Ncd7 {[%clk 0:02:42.7]} 15. Qb3 {[%clk 0:02:46.7]}
15... Rfd8 {[%clk 0:02:42.5]} 16. Rfd1 {[%clk 0:02:44.6]} 16... Rac8 {[%clk
0:02:42.6]} 17. Bf1 {[%clk 0:02:44.7]} 17... h6 {[%clk 0:02:40.5]} 18. Be2
{[%clk 0:02:29.4]} 18... Nd5 {[%clk 0:02:31.6]} 19. h3 {[%clk 0:02:28.4]} 19...
N7f6 {[%clk 0:02:29.2]} 20. Nd4 {[%clk 0:02:19.4]} 20... Nxc3 {[%clk 0:02:27.1]}
21. Bxc3 {[%clk 0:02:19.3]} 21... Bd5 {[%clk 0:02:25.9]} 22. Qb1 {[%clk
0:02:06.6]} 22... Ne4 {[%clk 0:02:24.2]} 23. Ba1 {[%clk 0:02:06.2]} 23... Bh4
{[%clk 0:02:13.8]} 24. f3 {[%clk 0:01:37.1]} 24... Rxc1 {[%clk 0:01:55]} 25.
Qxc1 {[%clk 0:01:36.7]} 25... Nd6 {[%clk 0:01:47.5]} 26. Qc5 {[%clk 0:01:20.4]}
26... Qb7 {[%clk 0:01:30.5]} 27. Nb3 {[%clk 0:00:57.9]} 27... Bxb3 {[%clk
0:01:12.3]} 28. Rxd6 {[%clk 0:00:57.5]} 28... Rc8 {[%clk 0:01:11.6]} 29. Qd4
{[%clk 0:00:46.4]} 29... Bf6 {[%clk 0:01:11.5]} 30. Qd3 {[%clk 0:00:14]} 30...
Bc4 {[%clk 0:01:08.5]} 31. Qd1 {[%clk 0:00:03.7]} 31... Bxe2 {[%clk 0:01:08]}
32. Qxe2 {[%clk 0:00:03.7]} 32... Bxa1 {[%clk 0:01:07.4]} 33. f4 {[%clk
0:00:02.2]} 33... Qc7 {[%clk 0:01:03.8]} 34. Kh2 {[%clk 0:00:03.1]} 34... Qxd6
{[%clk 0:01:03.6]} 0-1

[Event "Early-Titled-Tuesday-Blitz-March-26-2024"]
[Site "Chess.com"]
[Date "2024.03.26"]
[Round "6"]
[White "NewYearGirl"]
[Black "LeRoidesChampions"]
[Result "0-1"]
[WhiteElo "2437"]
[BlackElo "2678"]
[TimeControl "180+1"]
[EndTime "9:03:56 PDT"]
[Termination "LeRoidesChampions won by resignation"]

1. e4 {[%clk 0:03:00.9]} 1... Nf6 {[%clk 0:03:00.4]} 2. e5 {[%clk 0:03:01]} 2...
Nd5 {[%clk 0:03:00.8]} 3. c4 {[%clk 0:03:01.7]} 3... Nb6 {[%clk 0:02:59.2]} 4.
d4 {[%clk 0:03:02.3]} 4... d6 {[%clk 0:02:59.5]} 5. f4 {[%clk 0:03:02.8]} 5...
g6 {[%clk 0:02:57.4]} 6. Nc3 {[%clk 0:03:00.3]} 6... Bg7 {[%clk 0:02:57.6]} 7.
Be3 {[%clk 0:03:00.5]} 7... O-O {[%clk 0:02:58]} 8. Rc1 {[%clk 0:02:52.3]} 8...
Nc6 {[%clk 0:02:57.5]} 9. b3 {[%clk 0:02:49.8]} 9... dxe5 {[%clk 0:02:54.5]} 10.
fxe5 {[%clk 0:02:48.3]} 10... h5 {[%clk 0:02:52.1]} 11. Be2 {[%clk 0:02:47.7]}
11... Bf5 {[%clk 0:02:51]} 12. Nf3 {[%clk 0:02:47.1]} 12... e6 {[%clk
0:02:47.6]} 13. h3 {[%clk 0:02:39.9]} 13... Qe7 {[%clk 0:02:36.2]} 14. O-O
{[%clk 0:02:27.6]} 14... Rad8 {[%clk 0:02:35.8]} 15. Qe1 {[%clk 0:02:28.2]}
15... f6 {[%clk 0:02:07.9]} 16. Qg3 {[%clk 0:02:11]} 16... fxe5 {[%clk
0:02:00.8]} 17. dxe5 {[%clk 0:02:10.1]} 17... Nd7 {[%clk 0:01:56]} 18. Bg5
{[%clk 0:02:08.4]} 18... Qc5+ {[%clk 0:01:55.7]} 19. Kh1 {[%clk 0:02:05.8]}
19... Rde8 {[%clk 0:01:55.6]} 20. Na4 {[%clk 0:01:41]} 20... Qa3 {[%clk
0:01:54.6]} 21. Bf6 {[%clk 0:01:20.8]} 21... Nxf6 {[%clk 0:01:51.7]} 22. exf6
{[%clk 0:01:21.7]} 22... Rxf6 {[%clk 0:01:51.8]} 23. Nh4 {[%clk 0:01:21.8]}
23... Qxa2 {[%clk 0:01:49.5]} 24. Nxf5 {[%clk 0:01:01.6]} 24... exf5 {[%clk
0:01:46.6]} 25. Bf3 {[%clk 0:01:01.8]} 25... Kh7 {[%clk 0:01:42.4]} 26. Rcd1
{[%clk 0:00:40.6]} 26... Qxb3 {[%clk 0:01:39.2]} 27. Nc5 {[%clk 0:00:40.2]}
27... Qxc4 {[%clk 0:01:39]} 28. Nxb7 {[%clk 0:00:38.6]} 28... Ne5 {[%clk
0:01:38.2]} 29. Rfe1 {[%clk 0:00:34.5]} 29... f4 {[%clk 0:01:32.6]} 30. Qg5
{[%clk 0:00:32]} 30... Nxf3 {[%clk 0:01:30.9]} 31. gxf3 {[%clk 0:00:32.9]} 31...
Rxe1+ {[%clk 0:01:30.6]} 32. Rxe1 {[%clk 0:00:33.8]} 32... Qc6 {[%clk
0:01:30.5]} 33. Re7 {[%clk 0:00:29.3]} 33... Qxf3+ {[%clk 0:01:28.5]} 34. Kh2
{[%clk 0:00:29.7]} 34... Rf5 {[%clk 0:01:14]} 35. Rxg7+ {[%clk 0:00:22.7]} 35...
Kxg7 {[%clk 0:01:14.1]} 36. Qe7+ {[%clk 0:00:23]} 36... Kh6 {[%clk 0:01:14.5]}
37. Nd8 {[%clk 0:00:20.5]} 37... Qf2+ {[%clk 0:01:09.1]} 38. Kh1 {[%clk
0:00:20.8]} 38... f3 {[%clk 0:01:09]} 39. Nf7+ {[%clk 0:00:19.2]} 39... Rxf7
{[%clk 0:01:09.1]} 0-1

[Event "Early-Titled-Tuesday-Blitz-March-26-2024"]
[Site "Chess.com"]
[Date "2024.03.26"]
[Round "6"]
[White "DmitriiZakurdaev"]
[Black "azikom"]
[Result "0-1"]
[WhiteElo "2411"]
[BlackElo "2613"]
[TimeControl "180+1"]
[EndTime "9:04:02 PDT"]
[Termination "azikom won by resignation"]

1. d4 {[%clk 0:02:56.3]} 1... d5 {[%clk 0:02:48.2]} 2. c4 {[%clk 0:02:56]} 2...
e6 {[%clk 0:02:47.3]} 3. Nc3 {[%clk 0:02:56]} 3... c6 {[%clk 0:02:47.8]} 4. Nf3
{[%clk 0:02:55.4]} 4... dxc4 {[%clk 0:02:47.4]} 5. a4 {[%clk 0:02:54.4]} 5...
Bb4 {[%clk 0:02:45.9]} 6. e3 {[%clk 0:02:54.3]} 6... b5 {[%clk 0:02:45.3]} 7.
axb5 {[%clk 0:02:49]} 7... cxb5 {[%clk 0:02:46.2]} 8. Bd2 {[%clk 0:02:48.8]}
8... Bxc3 {[%clk 0:02:44.9]} 9. Bxc3 {[%clk 0:02:48]} 9... Bb7 {[%clk
0:02:43.9]} 10. b3 {[%clk 0:02:47.3]} 10... a5 {[%clk 0:02:42.5]} 11. bxc4
{[%clk 0:02:47.5]} 11... b4 {[%clk 0:02:43]} 12. Bb2 {[%clk 0:02:48.2]} 12...
Nf6 {[%clk 0:02:43.6]} 13. Bd3 {[%clk 0:02:47.7]} 13... O-O {[%clk 0:02:42.9]}
14. O-O {[%clk 0:02:47.9]} 14... Nbd7 {[%clk 0:02:41]} 15. Bc2 {[%clk
0:02:37.3]} 15... Qc7 {[%clk 0:02:39.1]} 16. Nd2 {[%clk 0:02:30]} 16... e5
{[%clk 0:02:31.5]} 17. Bb3 {[%clk 0:02:01.6]} 17... exd4 {[%clk 0:02:29.1]} 18.
exd4 {[%clk 0:02:00.2]} 18... Rfe8 {[%clk 0:02:29.7]} 19. Re1 {[%clk 0:01:53.4]}
19... Rxe1+ {[%clk 0:02:28.2]} 20. Qxe1 {[%clk 0:01:53.7]} 20... Re8 {[%clk
0:02:26.5]} 21. Qf1 {[%clk 0:01:53.3]} 21... Ng4 {[%clk 0:02:25.5]} 22. g3
{[%clk 0:01:46.1]} 22... h6 {[%clk 0:02:24.6]} 23. Bd1 {[%clk 0:01:21.1]} 23...
Ngf6 {[%clk 0:02:23.3]} 24. Bf3 {[%clk 0:01:16.9]} 24... Bxf3 {[%clk 0:02:22.2]}
25. Nxf3 {[%clk 0:01:17.8]} 25... Ra8 {[%clk 0:02:20]} 26. d5 {[%clk 0:00:31.7]}
26... a4 {[%clk 0:02:18.4]} 27. Nd4 {[%clk 0:00:29.6]} 27... a3 {[%clk
0:02:15.9]} 28. Nb5 {[%clk 0:00:22.4]} 28... Qa5 {[%clk 0:01:42.7]} 29. Bd4
{[%clk 0:00:21.1]} 29... Qa4 {[%clk 0:01:42.4]} 30. Qc1 {[%clk 0:00:13.8]} 30...
Ne4 {[%clk 0:01:34.8]} 31. Qf4 {[%clk 0:00:09.4]} 31... Ng5 {[%clk 0:01:31.2]}
32. Qf5 {[%clk 0:00:07]} 32... Nf8 {[%clk 0:01:28.9]} 33. h4 {[%clk 0:00:07.3]}
33... Ngh7 {[%clk 0:01:26.9]} 34. Nd6 {[%clk 0:00:07.5]} 34... Qd7 {[%clk
0:01:23.9]} 35. Qe5 {[%clk 0:00:07.2]} 35... Nf6 {[%clk 0:01:22.4]} 36. Nf5
{[%clk 0:00:05.8]} 36... Ng6 {[%clk 0:01:13.8]} 37. Qe3 {[%clk 0:00:04.4]} 37...
Qxf5 {[%clk 0:01:08.5]} 0-1

[Event "Early-Titled-Tuesday-Blitz-March-26-2024"]
[Site "Chess.com"]
[Date "2024.03.26"]
[Round "6"]
[White "KevinGeorgeMicheal"]
[Black "venturov"]
[Result "1-0"]
[WhiteElo "2421"]
[BlackElo "2515"]
[TimeControl "180+1"]
[EndTime "9:04:06 PDT"]
[Termination "KevinGeorgeMicheal won by checkmate"]

1. Nf3 {[%clk 0:03:00.9]} 1... g6 {[%clk 0:03:00.1]} 2. g3 {[%clk 0:03:00.5]}
2... Bg7 {[%clk 0:03:00.6]} 3. Bg2 {[%clk 0:03:01]} 3... e5 {[%clk 0:03:01.3]}
4. e4 {[%clk 0:03:00.4]} 4... Ne7 {[%clk 0:03:01.4]} 5. O-O {[%clk 0:03:00.4]}
5... O-O {[%clk 0:03:02]} 6. Nc3 {[%clk 0:02:54.5]} 6... c5 {[%clk 0:02:57.9]}
7. d3 {[%clk 0:02:52.9]} 7... d6 {[%clk 0:02:55.7]} 8. Nd2 {[%clk 0:02:50.8]}
8... Nbc6 {[%clk 0:02:53.1]} 9. Nc4 {[%clk 0:02:49.8]} 9... h6 {[%clk 0:02:42]}
10. f4 {[%clk 0:02:49.1]} 10... Be6 {[%clk 0:02:39.4]} 11. Be3 {[%clk
0:02:46.3]} 11... Rc8 {[%clk 0:02:25]} 12. Qd2 {[%clk 0:02:42.1]} 12... Kh7
{[%clk 0:02:20.3]} 13. Rf2 {[%clk 0:02:35.9]} 13... b6 {[%clk 0:02:16.4]} 14.
Raf1 {[%clk 0:02:34.6]} 14... d5 {[%clk 0:02:12.5]} 15. exd5 {[%clk 0:02:22.7]}
15... Nxd5 {[%clk 0:02:13.4]} 16. Nxd5 {[%clk 0:02:01.8]} 16... Bxd5 {[%clk
0:02:14.3]} 17. Bxd5 {[%clk 0:02:02.1]} 17... Qxd5 {[%clk 0:02:14.4]} 18. fxe5
{[%clk 0:02:02.6]} 18... Rce8 {[%clk 0:00:56.8]} 19. Nd6 {[%clk 0:01:52.2]}
19... Rxe5 {[%clk 0:00:54.5]} 20. Nxf7 {[%clk 0:01:43.5]} 20... Rxe3 {[%clk
0:00:45.4]} 21. Qxe3 {[%clk 0:01:38]} 21... Qd4 {[%clk 0:00:20.2]} 22. Qe6
{[%clk 0:01:11.2]} 22... Nd8 {[%clk 0:00:02.1]} 23. Nxd8 {[%clk 0:01:08.8]}
23... Rxd8 {[%clk 0:00:02.7]} 24. Kg2 {[%clk 0:01:01.8]} 24... Qxb2 {[%clk
0:00:02.8]} 25. Qe7 {[%clk 0:00:57.4]} 25... Qd4 {[%clk 0:00:01.7]} 26. Rf7
{[%clk 0:00:52.3]} 26... Qd5+ {[%clk 0:00:02.2]} 27. Qe4 {[%clk 0:00:51.1]}
27... Qxe4+ {[%clk 0:00:02.1]} 28. dxe4 {[%clk 0:00:51.2]} 28... Kg8 {[%clk
0:00:02.8]} 29. Rxa7 {[%clk 0:00:50.4]} 29... Rd4 {[%clk 0:00:01.3]} 30. Rff7
{[%clk 0:00:48.2]} 30... Be5 {[%clk 0:00:01.1]} 31. Rfe7 {[%clk 0:00:47]} 31...
Rxe4 {[%clk 0:00:01.7]} 32. Re8# {[%clk 0:00:46.7]} 1-0

[Event "Early-Titled-Tuesday-Blitz-March-26-2024"]
[Site "Chess.com"]
[Date "2024.03.26"]
[Round "6"]
[White "CURRUTACO59"]
[Black "Iskusnyh"]
[Result "0-1"]
[WhiteElo "2280"]
[BlackElo "2625"]
[TimeControl "180+1"]
[EndTime "9:04:08 PDT"]
[Termination "Iskusnyh won on time"]

1. Nf3 {[%clk 0:03:00.9]} 1... d5 {[%clk 0:02:57.7]} 2. d4 {[%clk 0:03:00.8]}
2... Nf6 {[%clk 0:02:57.3]} 3. c4 {[%clk 0:03:01.3]} 3... e6 {[%clk 0:02:56.4]}
4. Nc3 {[%clk 0:03:00]} 4... c6 {[%clk 0:02:55.6]} 5. e3 {[%clk 0:02:58.9]} 5...
a6 {[%clk 0:02:55]} 6. Bd3 {[%clk 0:02:52.1]} 6... dxc4 {[%clk 0:02:53.5]} 7.
Bxc4 {[%clk 0:02:51.6]} 7... b5 {[%clk 0:02:53.8]} 8. Be2 {[%clk 0:02:51.5]}
8... c5 {[%clk 0:02:53.9]} 9. O-O {[%clk 0:02:51.1]} 9... Nbd7 {[%clk
0:02:53.6]} 10. dxc5 {[%clk 0:02:49.7]} 10... Bxc5 {[%clk 0:02:52.6]} 11. a3
{[%clk 0:02:49.1]} 11... Bb7 {[%clk 0:02:49.3]} 12. b4 {[%clk 0:02:49.1]} 12...
Be7 {[%clk 0:02:48.8]} 13. Bb2 {[%clk 0:02:49.4]} 13... O-O {[%clk 0:02:48.4]}
14. Qb3 {[%clk 0:02:46.9]} 14... Qb8 {[%clk 0:02:47.4]} 15. h3 {[%clk
0:02:42.5]} 15... Rc8 {[%clk 0:02:45.6]} 16. Rac1 {[%clk 0:02:41.5]} 16... Nb6
{[%clk 0:02:43.8]} 17. Rfd1 {[%clk 0:02:33.1]} 17... Nfd5 {[%clk 0:02:34.5]} 18.
Nxd5 {[%clk 0:02:21.2]} 18... Bxd5 {[%clk 0:02:32]} 19. Rxc8+ {[%clk 0:01:43.5]}
19... Qxc8 {[%clk 0:02:29]} 20. Qc3 {[%clk 0:01:24.1]} 20... Qxc3 {[%clk
0:02:26.6]} 21. Bxc3 {[%clk 0:01:23.8]} 21... Rc8 {[%clk 0:02:27]} 22. Bd4
{[%clk 0:01:19.3]} 22... Nc4 {[%clk 0:02:26.1]} 23. Rc1 {[%clk 0:01:15.7]} 23...
Rd8 {[%clk 0:02:21]} 24. Rc3 {[%clk 0:01:06.4]} 24... f6 {[%clk 0:02:17.6]} 25.
a4 {[%clk 0:00:30.4]} 25... Bxb4 {[%clk 0:01:40.1]} 26. Rb3 {[%clk 0:00:29.6]}
26... a5 {[%clk 0:01:39.6]} 27. axb5 {[%clk 0:00:25.5]} 27... e5 {[%clk
0:01:37.5]} 28. Ba1 {[%clk 0:00:10]} 28... Nb6 {[%clk 0:01:27.6]} 29. Rb1 {[%clk
0:00:09.2]} 29... Kf7 {[%clk 0:01:23.3]} 30. Ne1 {[%clk 0:00:08.9]} 30... Be4
{[%clk 0:01:20.9]} 31. Rc1 {[%clk 0:00:07.7]} 31... Rd2 {[%clk 0:01:18.5]} 32.
Bf3 {[%clk 0:00:06.7]} 32... Bxf3 {[%clk 0:01:17.8]} 33. Nxf3 {[%clk 0:00:07.6]}
33... Ra2 {[%clk 0:01:17.4]} 34. Nh4 {[%clk 0:00:02.8]} 34... a4 {[%clk
0:01:06.8]} 35. Nf5 {[%clk 0:00:01.5]} 35... Kg6 {[%clk 0:01:05.3]} 36. e4
{[%clk 0:00:01.1]} 36... a3 {[%clk 0:01:03.8]} 0-1

[Event "Early-Titled-Tuesday-Blitz-March-26-2024"]
[Site "Chess.com"]
[Date "2024.03.26"]
[Round "6"]
[White "RebelJohnny"]
[Black "Aradhya2000"]
[Result "1/2-1/2"]
[WhiteElo "2560"]
[BlackElo "2741"]
[TimeControl "180+1"]
[EndTime "9:04:09 PDT"]
[Termination "Game drawn by repetition"]

1. e4 {[%clk 0:02:56.4]} 1... e5 {[%clk 0:03:00]} 2. Nf3 {[%clk 0:02:56.4]} 2...
Nc6 {[%clk 0:03:00.5]} 3. Nc3 {[%clk 0:02:57.1]} 3... Nf6 {[%clk 0:03:00.2]} 4.
d4 {[%clk 0:02:57.7]} 4... Bb4 {[%clk 0:03:00.8]} 5. Nxe5 {[%clk 0:02:57.3]}
5... Bxc3+ {[%clk 0:02:59.5]} 6. bxc3 {[%clk 0:02:56.8]} 6... Qe7 {[%clk
0:03:00.2]} 7. Nxc6 {[%clk 0:02:41.7]} 7... Qxe4+ {[%clk 0:03:00.2]} 8. Qe2
{[%clk 0:02:33]} 8... dxc6 {[%clk 0:02:59.9]} 9. Bg5 {[%clk 0:02:24.4]} 9...
Qxe2+ {[%clk 0:02:59.7]} 10. Bxe2 {[%clk 0:02:25.3]} 10... Ne4 {[%clk
0:03:00.2]} 11. Bd2 {[%clk 0:02:21.3]} 11... Be6 {[%clk 0:03:00.3]} 12. f3
{[%clk 0:02:18.7]} 12... Nxd2 {[%clk 0:02:58.8]} 13. Kxd2 {[%clk 0:02:19.6]}
13... O-O-O {[%clk 0:02:58.9]} 14. Kc1 {[%clk 0:02:06]} 14... c5 {[%clk
0:02:56.6]} 15. Rd1 {[%clk 0:02:05.3]} 15... Rd6 {[%clk 0:02:56.2]} 16. dxc5
{[%clk 0:01:54]} 16... Rc6 {[%clk 0:02:54.9]} 17. Kb2 {[%clk 0:01:54.2]} 17...
Rxc5 {[%clk 0:02:55.1]} 18. Rd4 {[%clk 0:01:50.9]} 18... a5 {[%clk 0:02:54.6]}
19. Rad1 {[%clk 0:01:49.4]} 19... h5 {[%clk 0:02:53.5]} 20. a3 {[%clk
0:01:45.9]} 20... h4 {[%clk 0:02:52.4]} 21. f4 {[%clk 0:01:42.1]} 21... c6
{[%clk 0:02:47.8]} 22. a4 {[%clk 0:01:20.2]} 22... g6 {[%clk 0:02:45.2]} 23. Bf3
{[%clk 0:01:15.8]} 23... Kc7 {[%clk 0:02:42.5]} 24. Be4 {[%clk 0:01:16]} 24...
Rb8 {[%clk 0:02:38.5]} 25. Bd3 {[%clk 0:01:07.3]} 25... Rh5 {[%clk 0:02:24.3]}
26. Be2 {[%clk 0:01:07]} 26... Rhh8 {[%clk 0:02:24.2]} 27. c4 {[%clk 0:00:52]}
27... Rhd8 {[%clk 0:02:14.9]} 28. Rxd8 {[%clk 0:00:46.7]} 28... Rxd8 {[%clk
0:02:14.6]} 29. Rxd8 {[%clk 0:00:47.1]} 29... Kxd8 {[%clk 0:02:15.3]} 30. c5
{[%clk 0:00:46.5]} 30... Ke7 {[%clk 0:02:10.6]} 31. Kc3 {[%clk 0:00:46.7]} 31...
Kf6 {[%clk 0:02:11]} 32. Bd3 {[%clk 0:00:41.3]} 32... g5 {[%clk 0:02:08.1]} 33.
g3 {[%clk 0:00:35.8]} 33... gxf4 {[%clk 0:02:02.1]} 34. gxf4 {[%clk 0:00:36.7]}
34... Bf5 {[%clk 0:01:56.2]} 35. Bc4 {[%clk 0:00:36.7]} 35... Be4 {[%clk
0:01:54.3]} 36. Bb3 {[%clk 0:00:34.7]} 36... Kf5 {[%clk 0:01:36.9]} 37. Bxf7
{[%clk 0:00:34]} 37... Kxf4 {[%clk 0:01:37.6]} 38. Be6 {[%clk 0:00:33.7]} 38...
Kf3 {[%clk 0:01:37.6]} 39. Bc8 {[%clk 0:00:30.2]} 39... Kg2 {[%clk 0:01:37.5]}
40. h3 {[%clk 0:00:30.4]} 40... Kg3 {[%clk 0:01:37.6]} 41. Kd2 {[%clk
0:00:22.5]} 41... Bg2 {[%clk 0:01:37.2]} 42. Ke3 {[%clk 0:00:12.7]} 42... Bxh3
{[%clk 0:01:35.4]} 43. Bxh3 {[%clk 0:00:11.8]} 43... Kxh3 {[%clk 0:01:35.7]} 44.
Kf3 {[%clk 0:00:12.7]} 44... Kh2 {[%clk 0:01:32.6]} 45. Kf2 {[%clk 0:00:13.1]}
45... Kh3 {[%clk 0:01:25.2]} 46. Kf3 {[%clk 0:00:13.2]} 46... Kh2 {[%clk
0:01:25.3]} 47. Kf2 {[%clk 0:00:13.6]} 47... Kh1 {[%clk 0:01:25.8]} 48. Kf1
{[%clk 0:00:13.9]} 48... Kh2 {[%clk 0:01:17.9]} 49. Kf2 {[%clk 0:00:14.3]}
1/2-1/2

[Event "Early-Titled-Tuesday-Blitz-March-26-2024"]
[Site "Chess.com"]
[Date "2024.03.26"]
[Round "6"]
[White "pfalcon1949"]
[Black "GMJustin"]
[Result "0-1"]
[WhiteElo "2049"]
[BlackElo "2347"]
[TimeControl "180+1"]
[EndTime "9:04:09 PDT"]
[Termination "GMJustin won on time"]

1. e4 {[%clk 0:03:00.9]} 1... c5 {[%clk 0:02:46.5]} 2. Nf3 {[%clk 0:03:00.4]}
2... d6 {[%clk 0:02:45.7]} 3. d4 {[%clk 0:03:00.4]} 3... cxd4 {[%clk 0:02:46.2]}
4. Nxd4 {[%clk 0:03:00.7]} 4... Nf6 {[%clk 0:02:45.7]} 5. Nc3 {[%clk 0:03:00.8]}
5... a6 {[%clk 0:02:44.2]} 6. h3 {[%clk 0:03:00.9]} 6... b5 {[%clk 0:02:43.3]}
7. a4 {[%clk 0:02:58]} 7... b4 {[%clk 0:02:38.2]} 8. Nd5 {[%clk 0:02:55.4]} 8...
e6 {[%clk 0:02:18.5]} 9. Nxf6+ {[%clk 0:02:51.4]} 9... Qxf6 {[%clk 0:02:16.8]}
10. Be2 {[%clk 0:02:50.6]} 10... Bb7 {[%clk 0:02:15.3]} 11. Qd3 {[%clk
0:02:49.9]} 11... Nd7 {[%clk 0:02:13.7]} 12. O-O {[%clk 0:02:48.9]} 12... Nc5
{[%clk 0:02:10.3]} 13. Qc4 {[%clk 0:02:47.2]} 13... d5 {[%clk 0:01:47.2]} 14.
exd5 {[%clk 0:02:41.8]} 14... Bxd5 {[%clk 0:01:45.7]} 15. Qxb4 {[%clk
0:02:09.2]} 15... Nb3 {[%clk 0:01:43.1]} 16. Qxb3 {[%clk 0:01:36.2]} 16... Bxb3
{[%clk 0:01:40.8]} 17. Nxb3 {[%clk 0:01:36.5]} 17... Be7 {[%clk 0:01:38.1]} 18.
c3 {[%clk 0:01:36.2]} 18... O-O {[%clk 0:01:37.5]} 19. Be3 {[%clk 0:01:36.1]}
19... Rab8 {[%clk 0:01:34.5]} 20. Bd1 {[%clk 0:01:31.2]} 20... Rfd8 {[%clk
0:01:32.5]} 21. Bc2 {[%clk 0:01:30.3]} 21... Qe5 {[%clk 0:01:28]} 22. Rfe1
{[%clk 0:01:20.9]} 22... Qc7 {[%clk 0:01:26.1]} 23. a5 {[%clk 0:01:15]} 23...
Qc4 {[%clk 0:01:18.9]} 24. Bb6 {[%clk 0:00:50.3]} 24... Rd5 {[%clk 0:01:04.1]}
25. Re4 {[%clk 0:00:38.2]} 25... Qc6 {[%clk 0:01:00.3]} 26. Rae1 {[%clk
0:00:36.1]} 26... g6 {[%clk 0:00:58.7]} 27. Nd4 {[%clk 0:00:33.2]} 27... Qd7
{[%clk 0:00:56.6]} 28. g3 {[%clk 0:00:28.7]} 28... Bc5 {[%clk 0:00:46.3]} 29.
Bxc5 {[%clk 0:00:20.5]} 29... Rxc5 {[%clk 0:00:46.4]} 30. Nb3 {[%clk 0:00:02.1]}
30... Rcb5 {[%clk 0:00:41.3]} 31. Rd4 {[%clk 0:00:01.5]} 31... Qc7 {[%clk
0:00:37.9]} 0-1

[Event "Early-Titled-Tuesday-Blitz-March-26-2024"]
[Site "Chess.com"]
[Date "2024.03.26"]
[Round "6"]
[White "Titus369"]
[Black "jaskol95"]
[Result "1-0"]
[WhiteElo "2633"]
[BlackElo "2471"]
[TimeControl "180+1"]
[EndTime "9:04:11 PDT"]
[Termination "Titus369 won by resignation"]

1. e4 {[%clk 0:03:00.9]} 1... e6 {[%clk 0:02:59.1]} 2. d4 {[%clk 0:03:00.8]}
2... d5 {[%clk 0:02:59.8]} 3. Nd2 {[%clk 0:03:01.4]} 3... Nf6 {[%clk 0:02:58.3]}
4. e5 {[%clk 0:03:00.8]} 4... Nfd7 {[%clk 0:02:59.1]} 5. Bd3 {[%clk 0:03:01.2]}
5... c5 {[%clk 0:02:59.7]} 6. c3 {[%clk 0:03:01.8]} 6... Nc6 {[%clk 0:03:00.5]}
7. Ne2 {[%clk 0:03:02]} 7... cxd4 {[%clk 0:03:01.1]} 8. cxd4 {[%clk 0:03:02.6]}
8... f6 {[%clk 0:03:01.7]} 9. Nf4 {[%clk 0:03:02.9]} 9... Nxd4 {[%clk
0:02:59.5]} 10. Qh5+ {[%clk 0:03:03.1]} 10... Ke7 {[%clk 0:02:58.8]} 11. exf6+
{[%clk 0:03:03.4]} 11... Nxf6 {[%clk 0:02:50.3]} 12. Ng6+ {[%clk 0:03:02.6]}
12... hxg6 {[%clk 0:02:50.9]} 13. Qxh8 {[%clk 0:03:03.1]} 13... Kf7 {[%clk
0:02:50.1]} 14. Qh4 {[%clk 0:03:03]} 14... e5 {[%clk 0:02:49]} 15. Nf3 {[%clk
0:02:51.6]} 15... Nxf3+ {[%clk 0:02:38.2]} 16. gxf3 {[%clk 0:02:52.5]} 16... Bf5
{[%clk 0:02:37.7]} 17. Bxf5 {[%clk 0:02:51.6]} 17... gxf5 {[%clk 0:02:38.6]} 18.
Bg5 {[%clk 0:02:52.1]} 18... Qa5+ {[%clk 0:02:20.8]} 19. Kf1 {[%clk 0:02:51.8]}
19... g6 {[%clk 0:02:21.5]} 20. Rc1 {[%clk 0:02:21.9]} 20... Bg7 {[%clk
0:02:18]} 21. Qg3 {[%clk 0:02:10.5]} 21... f4 {[%clk 0:01:19.8]} 22. Qh3 {[%clk
0:02:08.5]} 22... Rh8 {[%clk 0:01:07.1]} 23. Qg2 {[%clk 0:02:08]} 23... Qb5+
{[%clk 0:01:01.7]} 24. Kg1 {[%clk 0:02:07.8]} 24... Qd7 {[%clk 0:01:00.8]} 25.
h4 {[%clk 0:02:03.3]} 25... Rc8 {[%clk 0:00:59.8]} 26. Qf1 {[%clk 0:02:00.8]}
26... Rxc1 {[%clk 0:00:59]} 27. Qxc1 {[%clk 0:02:01.7]} 27... Qc6 {[%clk
0:00:57.9]} 28. Qd2 {[%clk 0:01:57.8]} 28... d4 {[%clk 0:00:48.5]} 29. Bxf6
{[%clk 0:01:56.5]} 29... Bxf6 {[%clk 0:00:46.8]} 30. Qd3 {[%clk 0:01:56.1]}
30... Qa6 {[%clk 0:00:25]} 31. Qxa6 {[%clk 0:01:46.2]} 31... bxa6 {[%clk
0:00:25.9]} 32. h5 {[%clk 0:01:45.9]} 32... gxh5 {[%clk 0:00:23.3]} 33. Rxh5
{[%clk 0:01:45.8]} 33... Ke6 {[%clk 0:00:23.9]} 34. Kf1 {[%clk 0:01:45.8]} 34...
Kd5 {[%clk 0:00:20.5]} 35. Ke2 {[%clk 0:01:46.3]} 35... Kc4 {[%clk 0:00:16.7]}
36. Rh6 {[%clk 0:01:46.2]} 36... Be7 {[%clk 0:00:15.1]} 37. Rxa6 {[%clk
0:01:45.3]} 37... d3+ {[%clk 0:00:15.7]} 38. Kd1 {[%clk 0:01:42.7]} 38... Bc5
{[%clk 0:00:16.1]} 39. Ra4+ {[%clk 0:01:42.1]} 39... Kd5 {[%clk 0:00:15.1]} 40.
Kd2 {[%clk 0:01:40.9]} 40... Bxf2 {[%clk 0:00:12.3]} 41. Kxd3 {[%clk 0:01:41.3]}
41... Bb6 {[%clk 0:00:11]} 42. Rc4 {[%clk 0:01:40.2]} 42... Bd4 {[%clk
0:00:08.3]} 43. b4 {[%clk 0:01:39.4]} 43... a6 {[%clk 0:00:07.8]} 44. a4 {[%clk
0:01:39.3]} 44... Be3 {[%clk 0:00:07]} 45. b5 {[%clk 0:01:38.8]} 45... axb5
{[%clk 0:00:07.7]} 46. axb5 {[%clk 0:01:39.7]} 46... Bf2 {[%clk 0:00:07.6]} 47.
Rc6 {[%clk 0:01:38.2]} 47... Be3 {[%clk 0:00:07.9]} 48. Rc8 {[%clk 0:01:37.3]}
48... Bb6 {[%clk 0:00:05.4]} 49. Rc6 {[%clk 0:01:31.4]} 49... Bd4 {[%clk
0:00:05.6]} 50. Rg6 {[%clk 0:01:30.9]} 50... Kc5 {[%clk 0:00:02.5]} 51. b6
{[%clk 0:01:30.9]} 51... Kd5 {[%clk 0:00:02.7]} 52. b7 {[%clk 0:01:30.6]} 52...
Ba7 {[%clk 0:00:03.4]} 53. Rg8 {[%clk 0:01:29.2]} 53... e4+ {[%clk 0:00:03.9]}
54. fxe4+ {[%clk 0:01:29.3]} 54... Ke5 {[%clk 0:00:04.7]} 1-0